Workbook

Sheet Sheet2
A1: Total Miles | B1: 2020-12-01 | E1: 2020-11-01 | G1: 2020-11-01 | H1: 2020-10-01 | J1: 2020-11-01 | K1: 2020-09-01 | M1: 2020-11-01 | N1: 2020-08-01 | P1: 2020-11-01 | Q1: 2020-07-01 | S1: 2020-11-01 | T1: 2020-06-01 | V1: 2020-11-01 | W1: 2020-05-01 | Y1: 2021-09-01 | Z1: 2020-04-01 | AB1: 2021-09-01 | AC1: 2020-03-01 | AE1: 2021-09-01 | AF1: 2020-02-01 | AH1: 2021-09-01 | AI1: 2020-01-01 | AK1: 2021-09-01
A2: 14964 | D2: =SUM(D3:D94) -> 760 | G2: =SUM(G3:G94) -> 1195 | J2: =SUM(J3:J94) -> 1453 | M2: =SUM(M3:M94) -> 951 | P2: =SUM(P3:P94) -> 947 | S2: =SUM(S3:S94) -> 1006 | V2: =SUM(V3:V94) -> 927 | Y2: =SUM(Y3:Y94) -> 1325 | AB2: =SUM(AB3:AB94) -> 1901 | AE2: =SUM(AE3:AE94) -> 1648 | AH2: =SUM(AH3:AH94) -> 1349 | AK2: =SUM(AK3:AK94) -> 1502
B3: 12/2/2020 | C3: Client Office | D3: 13 | E3: 11/2/2020 | F3: Client Office | G3: 13 | H3: 10/1/2020 | I3: Client Office | J3: 13 | K3: 9/1/2020 | L3: Client Office | M3: 13 | N3: 8/1/2020 | O3: Client Office | P3: 13 | Q3: 7/1/2020 | R3: Client Office | S3: 13 | T3: =IF(S3="","",MONTH(V$1)&"/"&S3&"/"&YEAR(V$1)) -> 11/13/2020 | U3: Client Office | V3: 13 | W3: 5/1/2020 | X3: Client | Y3: 13 | Z3: 4/1/2020 | AA3: Client | AB3: 13 | AC3: 3/1/2020 | AD3: Meeting w Client | AE3: 13 | AF3: 2/1/2020 | AG3: Office | AH3: 18 | AI3: 1/2/2020 | AJ3: Client | AK3: 13
C4: Seminar | D4: 29 | F4: Meeting | G4: 29 | I4: Meeting | J4: 29 | L4: Meeting | M4: 29 | O4: Meeting | P4: 29 | R4: Meeting | S4: 29* | T4: =IF(S4="","",MONTH(V$1)&"/"&S4&"/"&YEAR(V$1)) -> 11/29*/2020 | U4: Meeting | V4: 29 | X4: Office | Y4: 29 | AA4: Office Meeting | AB4: 29 | AD4: Home Office | AE4: 13 | AG4: Home Office | AH4: 18 | AJ4: Office | AK4: 29
F5: Home Office | G5: 18 | I5: Home Office | J5: 18 | L5: Home Office | M5: 18 | O5: Home Office | P5: 18 | R5: Client Office | S5: 13 | U5: Home Office | V5: 18 | X5: Home Office | Y5: 18 | AA5: Home Office | AB5: 18 | AD5: Client | AE5: 13 | AG5: Office | AH5: 18 | AJ5: Home Office | AK5: 18
C6: Home Office | D6: 18 | E6: 11/3/2020 | F6: Client Office | G6: 13 | H6: 10/2/2020 | I6: Client Office | J6: 13 | K6: 9/2/2020 | L6: Client Office | M6: 13 | N6: 8/4/2020 | O6: Client Office | P6: 13 | Q6: 7/2/2020 | R6: Client Office | S6: 13 | T6: =IF(S6="","",MONTH(V$1)&"/"&S6&"/"&YEAR(V$1)) -> 11/13/2020 | U6: Client Office | V6: 13 | W6: 5/2/2020 | X6: Lunch w/Chris | Y6: 14 | Z6: 4/2/2020 | AA6: Client | AB6: 13 | AD6: Office | AE6: 29 | AG6: Home Office | AH6: 18 | AI6: 1/3/2020 | AJ6: Client | AK6: 13
B7: 12/3/2020 | C7: Client Office | D7: 17 | F7: Home Office | G7: 13 | I7: Sherie | J7: 29 | L7: Home Office | M7: 13 | O7: Home Office | P7: 13 | R7: Sherman | S7: 29 | T7: 11/29/2020 | U7: Home Office | V7: 13 | X7: Home Office | Y7: 13 | AA7: Office Meeting | AB7: 29 | AD7: Home Office | AE7: 18 | AG7: Client | AH7: 13 | AJ7: Office | AK7: 20
C8: Home Office | D8: 13 | E8: 11/4/2020 | F8: Client Office | G8: 136 | I8: Home Office | J8: 18 | K8: 9/3/2020 | L8: Client Office | M8: 13 | N8: 8/5/2020 | O8: Client Office | P8: 13 | R8: Torneck | S8: 18 | T8: 11/18/2020 | U8: Ford | V8: 10 | W8: 5/4/2020 | X8: Client | Y8: 29 | AA8: Home Office | AB8: 18 | AC8: 3/3/2020 | AD8: Meeting w Client | AE8: 13 | AG8: Office | AH8: 29 | AJ8: Home Office | AK8: 18
B9: 12/4/2020 | C9: Client Office | D9: 13 | F9: J Sims | G9: 49 | H9: 10/3/2020 | I9: Lake Ford Glenn | J9: 125 | L9: Home Office | M9: 13 | O9: Home Office | P9: 13 | Q9: 7/3/2020 | R9: Client Office | S9: 13 | T9: 11/13/2020 | U9: Client Office | V9: 18 | X9: Office | Y9: 18 | Z9: 4/3/2020 | AA9: Client | AB9: 13 | AD9: Meeting w Client | AE9: 15 | AG9: Home Office | AH9: 18 | AI9: 1/6/2020 | AJ9: Client | AK9: 13
C10: Drake Seminar | D10: 35 | F10: T Richard | G10: 30 | I10: Home Office | J10: 125 | K10: 9/4/2020 | L10: Client Office | M10: 13 | N10: 8/6/2020 | O10: Client Office | P10: 13 | R10: Home Office | S10: 13 | T10: 11/13/2020 | U10: Home Office | V10: 18 | W10: 5/5/2020 | X10: Client | Y10: 13 | AA10: Office Meeting | AB10: 29 | AD10: Home Office | AE10: 5 | AF10: 2/2/2020 | AG10: Client | AH10: 13 | AJ10: Office | AK10: 29
C11: Home Office | D11: 18 | F11: Home Office | G11: 18 | H11: 10/5/2020 | I11: Client Office | J11: 13 | L11: Home Office | M11: 13 | O11: Home Office | P11: 13 | Q11: 7/6/2020 | R11: Client Office | S11: 13 | T11: 11/13/2020 | U11: Client Office | V11: 13 | X11: Client | Y11: 20 | AA11: Home Office | AB11: 18 | AD11: Office | AE11: 18 | AG11: Home Office | AH11: 13 | AJ11: Home Office | AK11: 18
B12: 12/5/2020 | C12: Client Office | D12: 13 | E12: 11/5/2020 | F12: Client Office | G12: 13 | I12: Home Office | J12: 13 | K12: 9/7/2020 | L12: Client Office | M12: 13 | N12: 8/7/2020 | O12: Client Office | P12: 13 | R12: Ferton Phil | S12: 29 | T12: 11/29/2020 | U12: Kamy | V12: 14 | X12: Office | Y12: 15 | Z12: 4/4/2020 | AA12: Client | AB12: 18 | AD12: Home Office | AE12: 18 | AG12: Client | AH12: 10 | AI12: 1/7/2020 | AJ12: Client | AK12: 13
C13: Seminar | D13: 29 | F13: R Gallagher | G13: 29 | H13: 10/6/2020 | I13: Client Office | J13: 13 | L13: Home Office | M13: 13 | O13: Home Office | P13: 13 | R13: Home Office | S13: 18 | T13: 11/18/2020 | U13: Home Office | V13: 14 | X13: Home Office | Y13: 18 | AA13: Home Office | AB13: 18 | AC13: 3/3/2020 | AD13: Meeting w Client | AE13: 13 | AG13: Office | AH13: 14 | AJ13: Office | AK13: 29
C14: Home Office | D14: 18 | F14: Home Office | G14: 18 | I14: VA Schenck | J14: 29 | K14: 9/8/2020 | L14: Client Office | M14: 13 | N14: 8/10/2020 | O14: Jacobs | P14: 13 | Q14: 7/7/2020 | R14: Client Office | S14: 13 | T14: 11/13/2020 | U14: Client Office | V14: 13 | W14: 5/6/2020 | X14: Client | Y14: 13 | Z14: 4/6/2020 | AA14: Client | AB14: 13 | AD14: Office | AE14: 29 | AG14: Home Office | AH14: 18 | AJ14: Home Office | AK14: 18
B15: 12/8/2020 | C15: Client Office | D15: 13 | E15: 11/6/2020 | F15: Client Office | G15: 13 | I15: Home Office | J15: 18 | L15: -Hunt | M15: 29 | O15: Home Office | P15: 13 | R15: Home Office | S15: 13 | T15: 11/13/2020 | U15: Snider | V15: 29 | X15: VA Schenck | Y15: 20 | AA15: Office Meeting | AB15: 29 | AD15: Home Office | AE15: 18 | AF15: 2/5/2020 | AG15: Client | AH15: 13 | AI15: 1/8/2020 | AJ15: Client | AK15: 13
C16: Seminar | D16: 29 | F16: T Sitek | G16: 29 | H16: 10/7/2020 | I16: Client Office | J16: 13 | L16: Home Office | M16: 18 | N16: 8/11/2020 | O16: Client Office | P16: 13 | Q16: 7/8/2020 | R16: Client Office | S16: 13 | T16: 11/13/2020 | U16: Home Office | V16: 18 | X16: Office | Y16: 14 | AA16: Home Office | AB16: 18 | AC16: 3/5/2020 | AD16: Client | AE16: 13 | AG16: Office | AH16: 29 | AJ16: Meeting | AK16: 29
C17: Home Office | D17: 18 | F17: Home Office | G17: 18 | I17: Home Office | J17: 13 | K17: 9/9/2020 | L17: Client Office | M17: 13 | O17: Home Office | P17: 13 | R17: Herley | S17: 29 | T17: 11/29/2020 | U17: Client Office | V17: 13 | X17: Home Office | Y17: 18 | Z17: 4/7/2020 | AA17: Client | AB17: 13 | AD17: Office | AE17: 29 | AG17: Home Office | AH17: 18 | AJ17: Office | AK17: 18
B18: 12/9/2020 | C18: Client Office | D18: 13 | E18: 11/9/2020 | F18: Client Office | G18: 13 | H18: 10/8/2020 | I18: Client Office | J18: 13 | L18: VA Schenck | M18: 25 | N18: 8/12/2020 | O18: Client Office | P18: 13 | R18: Home Office | S18: 13 | T18: 11/13/2020 | U18: Home Office | V18: 13 | W18: 5/7/2020 | X18: Client | Y18: 13 | AA18: Office Meeting | AB18: 29 | AD18: Home Office | AE18: 18 | AF18: 2/6/2020 | AG18: Client | AH18: 13 | AJ18: Home Office | AK18: 13
C19: Home Office | D19: 13 | F19: Home Office | G19: 13 | I19: VA Schenck | J19: 25 | L19: Home Office | M19: 27 | O19: Home Office | P19: 13 | Q19: 7/9/2020 | R19: Client Office | S19: 13 | T19: 11/13/2020 | U19: Client Office | V19: 13 | X19: Office | Y19: 29 | AA19: Home Office | AB19: 18 | AC19: 3/6/2020 | AD19: Client | AE19: 13 | AG19: Office | AH19: 29 | AI19: 1/9/2020 | AJ19: Client | AK19: 29
B20: 12/10/2020 | C20: Client Office | D20: 13 | E20: 11/10/2020 | F20: Client Office | G20: 13 | I20: Meeting | J20: 10 | K20: 9/10/2020 | L20: Client Office | M20: 13 | N20: 8/13/2020 | O20: Client Office | P20: 13 | R20: Biggs | S20: 29 | T20: 11/29/2020 | U20: Snider | V20: 29 | X20: Home Office | Y20: 18 | Z20: 4/8/2020 | AA20: Client | AB20: 13 | AD20: Office | AE20: 29 | AG20: Home Office | AH20: 18 | AJ20: Office | AK20: 18
C21: Home Office | D21: 13 | F21: Webinar Office | G21: 29 | I21: Home Office | J21: 18 | L21: Home Office | M21: 13 | O21: Jacobs | P21: 29 | R21: Home Office | S21: 18 | T21: 11/18/2020 | U21: Home Office | V21: 18 | W21: 5/8/2020 | X21: Client | Y21: 13 | AA21: Office Meeting | AB21: 29 | AD21: Home Office | AE21: 18 | AF21: 2/7/2020 | AG21: Client | AH21: 13 | AJ21: Home Office | AK21: 13
B22: 12/11/2020 | C22: Client Office | D22: 13 | F22: Home Office | G22: 18 | H22: 10/9/2020 | I22: Client Office | J22: 13 | K22: 9/11/2020 | L22: Client Office | M22: 13 | O22: Home Office | P22: 18 | Q22: 7/10/2020 | R22: Client Office | S22: 13 | T22: 11/13/2020 | U22: Client Office | V22: 13 | X22: Office | Y22: 29 | AA22: Home Office | AB22: 18 | AC22: 3/7/2020 | AD22: Client | AE22: 5 | AG22: Office | AH22: 29 | AI22: 1/10/2020 | AJ22: Office | AK22: 29
C23: Home Office | D23: 13 | E23: 11/11/2020 | F23: Client Office | G23: 13 | I23: Home Office | J23: 13 | L23: Stround | M23: 29 | N23: 8/14/2020 | O23: Client Office | P23: 13 | R23: Home Office | S23: 13 | T23: 11/13/2020 | U23: Home Office | V23: 13 | X23: Home Office | Y23: 18 | Z23: 4/9/2020 | AA23: Client | AB23: 13 | AD23: Home Office | AE23: 5 | AG23: Home Office | AH23: 18 | AJ23: Home Office | AK23: 18
B24: 12/14/2020 | C24: Client Office | D24: 13 | F24: Home Office | G24: 13 | H24: 10/12/2020 | I24: Client Office | J24: 13 | L24: Home Office | M24: 18 | O24: Home Office | P24: 29 | Q24: 7/13/2020 | R24: Client Office | S24: 13 | T24: 11/13/2020 | U24: Client Office | V24: 13 | W24: 5/11/2020 | X24: Client | Y24: 13 | AA24: Home Office | AB24: 29 | AC24: 3/9/2020 | AD24: Client | AE24: 13 | AF24: 2/8/2020 | AG24: Client | AH24: 18 | AI24: 1/11/2020 | AJ24: Lunch w/client | AK24: 28
C25: Home Office | D25: 13 | E25: 11/12/2020 | F25: Client Office | G25: 13 | I25: T Ford | J25: 20 | K25: 9/14/2020 | L25: Client Office | M25: 13 | N25: 8/17/2020 | O25: Client Office | P25: 13 | R25: Krup | S25: 29 | T25: 11/29/2020 | U25: Hensley | V25: 10 | X25: Home Office | Y25: 13 | AA25: Home Office | AB25: 18 | AD25: Office | AE25: 29 | AG25: Home Office | AH25: 18 | AI25: 1/13/2020 | AJ25: Client | AK25: 13
B26: 12/15/2020 | C26: Client Office | D26: 13 | F26: Home Office | G26: 13 | I26: Home Office | J26: 15 | L26: Home Office | M26: 13 | O26: Okie | P26: 28 | R26: Home Office | S26: 18 | T26: 11/18/2020 | U26: Home Office | V26: 4 | W26: 5/12/2020 | X26: Client | Y26: 13 | Z26: 4/10/2020 | AA26: Client | AB26: 20 | AD26: Home Office | AE26: 18 | AF26: 2/9/2020 | AG26: Client | AH26: 18 | AJ26: Office | AK26: 29
C27: Home Office | D27: 13 | E27: 11/13/2020 | F27: Client Office | G27: 13 | H27: 10/13/2020 | I27: Client Office | J27: 13 | K27: 9/15/2020 | L27: Client Office | M27: 13 | O27: Home Office | P27: 25 | Q27: 7/14/2020 | R27: Client Office | S27: 13 | T27: 11/13/2020 | U27: Client Office | V27: 13 | X27: Office | Y27: 29 | AA27: Office Meeting | AB27: 29 | AC27: 3/10/2020 | AD27: Client | AE27: 13 | AG27: Home Office | AH27: 18 | AJ27: Home Office | AK27: 18
B28: 12/16/2020 | C28: Client Office | D28: 13 | F28: T Ford | G28: 28 | I28: Home Office | J28: 13 | L28: Home Office | M28: 13 | N28: 8/18/2020 | O28: Client Office | P28: 13 | R28: Home Office | S28: 13 | T28: 11/13/2020 | U28: Senna | V28: 13 | X28: Home Office | Y28: 18 | AA28: Home Office | AB28: 18 | AD28: Office | AE28: 29 | AF28: 2/10/2020 | AG28: Client | AH28: 13 | AI28: 1/14/2020 | AJ28: Client | AK28: 13
C29: Home Office | D29: 13 | F29: Home Office | G29: 30 | H29: 10/14/2020 | I29: Client Office | J29: 13 | K29: 9/16/2020 | L29: Client Office | M29: 13 | O29: Home Office | P29: 13 | Q29: 7/15/2020 | R29: Client Office | S29: 13 | T29: 11/13/2020 | U29: Client Office | V29: 13 | W29: 5/13/2020 | X29: Client | Y29: 13 | Z29: 4/11/2020 | AA29: Client | AB29: 18 | AD29: Home Office | AE29: 18 | AG29: Home Office | AH29: 13 | AJ29: Office | AK29: 29
B30: 12/17/2020 | C30: Client Office | D30: 13 | E30: 11/16/2020 | F30: Client Office | G30: 13 | I30: Meeting Office | J30: 29 | L30: Home Office | M30: 13 | N30: 8/19/2020 | O30: Client Office | P30: 13 | R30: VA Schenck | S30: 20 | T30: 11/20/2020 | U30: Home Office | V30: 13 | X30: Office | Y30: 29 | AA30: Home Office | AB30: 18 | AC30: 3/11/2020 | AD30: Client | AE30: 13 | AG30: Client | AH30: 18 | AJ30: Home Office | AK30: 18
C31: VA Schenck | D31: 25 | F31: Home Office | G31: 13 | I31: Home Office | J31: 18 | K31: 9/17/2020 | L31: Client Office | M31: 13 | O31: J Clerc | P31: 29 | R31: Home Office | S31: 25 | T31: 11/25/2020 | U31: Client Office | V31: 13 | X31: Home Office | Y31: 18 | Z31: 4/12/2020 | AA31: Client | AB31: 18 | AD31: VA Schenck | AE31: 20 | AG31: Home Office | AH31: 18 | AI31: 1/15/2020 | AJ31: Client | AK31: 13
C32: Home Office | D32: 29 | E32: 11/17/2020 | F32: Client Office | G32: 13 | H32: 10/15/2020 | I32: Client Office | J32: 13 | L32: Home Office | M32: 13 | O32: Home Office | P32: 13 | Q32: 7/16/2020 | R32: Client Office | S32: 13 | T32: 11/13/2020 | U32: Home Office | V32: 13 | W32: 5/14/2020 | X32: Client | Y32: 13 | AA32: Home Office | AB32: 18 | AD32: Office | AE32: 14 | AF32: 2/11/2020 | AG32: Client | AH32: 18 | AJ32: VA Schenck | AK32: 22
B33: 12/18/2020 | C33: Client Office | D33: 13 | F33: Meeting | G33: 29 | I33: Meeting Office | J33: 29 | K33: 9/18/2020 | L33: Client Office | M33: 13 | N33: 8/20/2020 | O33: Client Office | P33: 13 | R33: Home Office | S33: 13 | T33: 11/13/2020 | U33: Client Office | V33: 13 | X33: Office | Y33: 29 | Z33: 4/13/2020 | AA33: Client | AB33: 13 | AD33: Home Office | AE33: 18 | AG33: Office | AH33: 29 | AJ33: Office | AK33: 10
C34: Home Office | D34: 13 | F34: Home Office | G34: 18 | I34: Home Office | J34: 18 | L34: Home Office | M34: 13 | O34: Home Office | P34: 13 | Q34: 7/17/2020 | R34: Client Office | S34: 13 | T34: 11/13/2020 | U34: VA Schenk | V34: 20 | X34: Home Office | Y34: 18 | AA34: Office Meeting | AB34: 29 | AC34: 3/12/2020 | AD34: Client | AE34: 13 | AG34: Home Office | AH34: 18 | AJ34: Home Office | AK34: 18
B35: 12/21/2020 | C35: Client Office | D35: 13 | E35: 11/18/2020 | F35: Client Office | G35: 13 | H35: 10/16/2020 | I35: Client Office | J35: 13 | K35: 9/21/2020 | L35: Client Office | M35: 13 | O35: Bunch | P35: 10 | R35: Home Office | S35: 13 | T35: 11/13/2020 | U35: Home Office | V35: 22 | W35: 5/15/2020 | X35: Client | Y35: 13 | AA35: Home Office | AB35: 18 | AD35: Office | AE35: 28 | AF35: 2/12/2020 | AG35: Client | AH35: 13 | AI35: 1/16/2020 | AJ35: Client | AK35: 13
C36: Home Office | D36: 13 | F36: VO Schenk | G36: 28 | I36: Meeting PPP | J36: 29 | L36: Home Office | M36: 13 | O36: Home Office | P36: 10 | Q36: 7/20/2020 | R36: Client Office | S36: 13 | T36: 11/13/2020 | U36: Client Office | V36: 13 | X36: Office | Y36: 29 | Z36: 4/14/2020 | AA36: Client | AB36: 13 | AD36: Home Office | AE36: 18 | AG36: VA Schenck | AH36: 20 | AJ36: CPE IL | AK36: 56
B37: 12/22/2020 | C37: Client Office | D37: 13 | F37: Home Office | G37: 30 | I37: Home Office | J37: 18 | K37: 9/22/2020 | L37: Client Office | M37: 13 | N37: 8/21/2020 | O37: Client Office | P37: 13 | R37: Home Office | S37: 13 | T37: 11/13/2020 | U37: Home Office | V37: 13 | X37: Home Office | Y37: 18 | AA37: VA Schenck | AB37: 22 | AD37: Lunch Meeting | AE37: 10 | AG37: Office | AH37: 11 | AJ37: Office | AK37: 42
C38: Home Office | D38: 13 | E38: 11/19/2020 | F38: Client Office | G38: 13 | H38: 10/19/2020 | I38: Client Office | J38: 13 | L38: Home Office | M38: 13 | O38: Sitek | P38: 27 | Q38: 7/21/2020 | R38: Client Office | S38: 13 | T38: 11/13/2020 | U38: Client Office | V38: 13 | W38: 5/16/2020 | X38: Client | Y38: 28 | AA38: Home Office | AB38: 12 | AC38: 3/13/2020 | AD38: Client | AE38: 13 | AG38: Home Office | AH38: 18 | AJ38: Home Office | AK38: 18
B39: 12/23/2020 | C39: Client Office | D39: 13 | F39: Home Office | G39: 13 | I39: Meeting Office | J39: 29 | K39: 9/23/2020 | L39: Client Office | M39: 13 | O39: Home Office | P39: 18 | R39: Home Office | S39: 13 | T39: 11/13/2020 | U39: Home Office | V39: 13 | X39: Office | Y39: 10 | AA39: Office Meeting | AB39: 18 | AD39: Lunch Meeting | AE39: 19 | AF39: 2/13/2020 | AG39: Client | AH39: 13 | AI39: 1/17/2020 | AJ39: Client | AK39: 13
C40: Home Office | D40: 13 | E40: 11/20/2020 | F40: Client Office | G40: 13 | I40: Home Office | J40: 18 | L40: VA Schenck | M40: 29 | N40: 8/24/2020 | O40: Client Office | P40: 13 | Q40: 7/22/2020 | R40: Client Office | S40: 13 | T40: 11/13/2020 | U40: Client Office | V40: 13 | X40: Home Office | Y40: 18 | AA40: Home Office | AB40: 18 | AD40: Home Office | AE40: 18 | AG40: Home Office | AH40: 13 | AJ40: Office | AK40: 29
B41: 12/24/2020 | C41: Client Office | D41: 13 | F41: Thompson's | G41: 29 | H41: 10/20/2020 | I41: Client Office | J41: 13 | L41: R Ford | M41: 25 | O41: Home Office | P41: 13 | R41: Burhnam | S41: 29 | T41: 11/29/2020 | U41: Sedivic | V41: 29 | W41: 5/17/2020 | X41: Office | Y41: 18 | Z41: 4/15/2020 | AA41: Client | AB41: 13 | AD41: Office | AE41: 18 | AG41: Office | AH41: 18 | AJ41: Home Office | AK41: 18
C42: Home Office | D42: 13 | F42: Home Office | G42: 18 | I42: Nancy Kiefen | J42: 29 | L42: Home Office | M42: 19 | N42: 8/25/2020 | O42: Client Office | P42: 13 | R42: Home Office | S42: 18 | T42: 11/18/2020 | U42: Home Office | V42: 18 | X42: Home Office | Y42: 15 | AA42: Office Meeting | AB42: 29 | AD42: Home Office | AE42: 18 | AG42: Home Office | AH42: 18 | AI42: 1/19/2020 | AJ42: Lunch w/client | AK42: 12
B43: 12/28/2020 | C43: Client Office | D43: 13 | E43: 11/23/2020 | F43: Client Office | G43: 13 | I43: Home Office | J43: 18 | K43: 9/24/2020 | L43: Client Office | M43: 13 | O43: Home Office | P43: 29 | Q43: 7/23/2020 | R43: Client Office | S43: 13 | T43: 11/13/2020 | U43: Client Office | V43: 13 | W43: 5/18/2020 | X43: Client | Y43: 13 | AA43: Home Office | AB43: 18 | AC43: 3/16/2020 | AD43: Client | AE43: 13 | AF43: 2/12/2020 | AG43: Client | AH43: 13 | AI43: 1/20/2020 | AJ43: Client | AK43: 13
C44: Home Office | D44: 13 | F44: Home Office | G44: 13 | H44: 10/21/2020 | I44: Client Office | J44: 13 | L44: Home Office | M44: 13 | N44: 8/26/2020 | O44: Client Office | P44: 18 | R44: Blegs | S44: 29 | T44: 11/29/2020 | U44: Morrison | V44: 29 | X44: Office | Y44: 29 | Z44: 4/16/2020 | AA44: Client | AB44: 13 | AD44: Office | AE44: 29 | AG44: Office | AH44: 13 | AJ44: S Robins | AK44: 35
B45: 12/29/2020 | C45: Client Office | D45: 13 | E45: 11/24/2020 | F45: Client Office | G45: 13 | I45: VA Schenck | J45: 25 | K45: 9/25/2020 | L45: Client Office | M45: 13 | O45: VA Schenck | P45: 13 | R45: Home Office | S45: 18 | T45: 11/18/2020 | U45: Home Office | V45: 18 | X45: Home Office | Y45: 18 | AA45: Office Meeting | AB45: 29 | AD45: Home Office | AE45: 18 | AG45: Office | AH45: 18 | AJ45: Office | AK45: 28
C46: Home Office | D46: 13 | F46: Home Office | G46: 13 | I46: Home Office | J46: 19 | L46: Home Office | M46: 13 | O46: Matt | P46: 13 | Q46: 7/24/2020 | R46: Client Office | S46: 13 | T46: 11/13/2020 | U46: Client Office | V46: 13 | W46: 5/19/2020 | X46: Client | Y46: 13 | AA46: Home Office | AB46: 18 | AC46: 3/17/2020 | AD46: Client | AE46: 13 | AG46: Home Office | AH46: 18 | AJ46: Home Office | AK46: 18
B47: 12/30/2020 | C47: Client Office | D47: 13 | E47: 11/25/2020 | F47: Client Office | G47: 13 | I47: T Ford | J47: 7 | K47: 9/28/2020 | L47: Client Office | M47: 13 | O47: Home Office | P47: 13 | R47: Home Office | S47: 13 | T47: 11/13/2020 | U47: Morrison | V47: 29 | X47: Office | Y47: 29 | Z47: 4/17/2020 | AA47: Columbia | AB47: 220 | AD47: Office | AE47: 29 | AF47: 2/15/2020 | AG47: Office | AH47: 18 | AI47: 1/21/2020 | AJ47: Client | AK47: 13
C48: Home Office | D48: 13 | F48: Home Office | G48: 13 | H48: 10/22/2020 | I48: Client Office | J48: 123 | L48: Home Office | M48: 13 | N48: 8/27/2020 | O48: Client Office | P48: 13 | Q48: 7/27/2020 | R48: Client Office | S48: 13 | T48: 11/13/2020 | U48: Home Office | V48: 18 | X48: Home Office | Y48: 18 | Z48: 4/20/2020 | AA48: Office Meeting | AB48: 29 | AD48: Home Office | AE48: 18 | AG48: Home Office | AH48: 18 | AJ48: Office | AK48: 29
B49: 12/31/2020 | C49: Client Office | D49: 13 | E49: 11/30/2020 | F49: Client Office | G49: 13 | I49: Home Office | J49: 13 | K49: 9/29/2020 | L49: Client Office | M49: 13 | O49: Home Office | P49: 13 | R49: Home Office | S49: 13 | T49: 11/13/2020 | U49: Client Office | V49: 13 | W49: 5/20/2020 | X49: Client | Y49: 13 | AA49: C | AB49: 13 | AC49: 3/18/2020 | AD49: Client | AE49: 13 | AF49: 2/17/2020 | AG49: Client | AH49: 13 | AJ49: Home Office | AK49: 18
C50: PO/Bank | D50: 40 | F50: Home Office | G50: 13 | H50: 10/23/2020 | I50: Client Office | J50: 13 | L50: K Ryan | M50: 29 | N50: 8/28/2020 | O50: Client Office | P50: 13 | Q50: 7/28/2020 | R50: Client Office | S50: 13 | T50: 11/13/2020 | U50: Peters | V50: 13 | X50: VA Schenck | Y50: 20 | AA50: Office Meeting | AB50: 29 | AD50: Office | AE50: 29 | AG50: Home Office | AH50: 13 | AI50: 1/22/2020 | AJ50: Client | AK50: 13
F51: Bank/PO | G51: 200 | I51: Home Office | J51: 13 | L51: Home Office | M51: 18 | O51: Holst | P51: 29 | R51: Home Office | S51: 13 | T51: 11/13/2020 | U51: Sedoin | V51: 5 | X51: Office | Y51: 12 | AA51: Home Office | AB51: 18 | AD51: Home Office | AE51: 18 | AG51: Office | AH51: 18 | AJ51: Office | AK51: 29
H52: 10/26/2020 | I52: Client Office | J52: 13 | K52: 9/30/2020 | L52: Client Office | M52: 13 | O52: Home Office | P52: 13 | Q52: 7/29/2020 | R52: Client Office | S52: 13 | T52: 11/13/2020 | U52: Baker | V52: 7 | X52: Home Office | Y52: 18 | Z52: 4/21/2020 | AA52: C | AB52: 13 | AC52: 3/19/2020 | AD52: Client | AE52: 13 | AG52: Home Office | AH52: 18 | AJ52: Home Office | AK52: 18
I53: Kammy | J53: 21 | L53: Conner | M53: 24 | N53: 8/31/2020 | O53: Client Office | P53: 13 | R53: Larnartina | S53: 29 | T53: 11/29/2020 | U53: Client Office | V53: 13 | W53: 5/21/2020 | X53: Client | Y53: 13 | AA53: Home Office | AB53: 20 | AD53: Office | AE53: 29 | AF53: 2/18/2020 | AG53: Client | AH53: 13 | AI53: 1/23/2020 | AJ53: Client | AK53: 13
I54: Meeting | J54: 10 | L54: Home Office | M54: 13 | O54: Home Office | P54: 13 | R54: Home Office | S54: 18 | T54: 11/18/2020 | U54: Home Office | V54: 13 | X54: Home Office | Y54: 13 | AA54: Office Meeting | AB54: 15 | AD54: Lunch Meeting | AE54: 18 | AG54: Home Office | AH54: 13 | AJ54: Office | AK54: 29
I55: Home Office | J55: 18 | L55: Errands | M55: 120 | O55: Errands Bank/PO | P55: 120 | Q55: 7/30/2020 | R55: Client Office | S55: 13 | T55: 11/13/2020 | U55: Client Office | V55: 13 | X55: Office | Y55: 18 | AA55: Home Office | AB55: 18 | AD55: Office | AE55: 13 | AG55: Office | AH55: 18 | AJ55: Home Office | AK55: 18
H56: 10/27/2020 | I56: Client Office | J56: 13 | R56: Kamy | S56: 20 | T56: 11/20/2020 | U56: Rousey | V56: 29 | X56: Home Office | Y56: 18 | Z56: 4/22/2020 | AA56: C | AB56: 13 | AC56: 3/20/2020 | AD56: Home Office | AE56: 29 | AG56: Home Office | AH56: 18 | AI56: 1/24/2020 | AJ56: Client | AK56: 13
I57: Home Office | J57: 13 | R57: Home Office | S57: 8 | T57: 11/8/2020 | U57: Home Office | V57: 18 | W57: 5/22/2020 | X57: Client | Y57: 13 | AA57: Office Meeting | AB57: 29 | AD57: Client | AE57: 8 | AF57: 2/19/2020 | AG57: Client | AH57: 13 | AJ57: Office | AK57: 29
H58: 10/28/2020 | I58: Client Office | J58: 13 | R58: Errands, Bank, PO | S58: 120 | T58: 11/120/2020 | U58: Client Office | V58: 13 | X58: Office | Y58: 29 | AA58: Home Office | AB58: 18 | AD58: Office | AE58: 8 | AG58: Office | AH58: 29 | AJ58: Home Office | AK58: 18
I59: M Snider | J59: 29 | U59: Home Office | V59: 13 | X59: Home Office | Y59: 18 | Z59: 4/23/2020 | AA59: C | AB59: 13 | AD59: Home Office | AE59: 18 | AG59: Home Office | AH59: 18 | AI59: 1/27/2020 | AJ59: Client | AK59: 13
I60: Home Office | J60: 18 | U60: Errands, PO, Bank | V60: 40 | W60: 5/26/2020 | X60: Client | Y60: 13 | AA60: Office Meeting | AB60: 29 | AC60: 3/23/2020 | AD60: Client | AE60: 13 | AF60: 2/20/2020 | AG60: Client | AH60: 13 | AJ60: Office | AK60: 29
H61: 10/29/2020 | I61: Client Office | J61: 13 | X61: Office | Y61: 29 | AA61: Home Office | AB61: 18 | AD61: Office | AE61: 29 | AG61: Office | AH61: 29 | AJ61: Home Office | AK61: 18
I62: M Goodman | J62: 29 | X62: Home Office | Y62: 18 | Z62: 4/24/2020 | AA62: C | AB62: 40 | AD62: Home Office | AE62: 18 | AG62: Home Office | AH62: 18 | AI62: 1/28/2020 | AJ62: Client | AK62: 13
I63: Home Office | J63: 18 | W63: 5/27/2020 | X63: Client | Y63: 13 | AA63: Office Meeting | AB63: 13 | AC63: 3/23/2020 | AD63: Client | AE63: 13 | AF63: 2/25/2020 | AG63: Client | AH63: 13 | AJ63: Office | AK63: 29
H64: 10/30/2020 | I64: Client Office | J64: 13 | X64: Office | Y64: 29 | AA64: Home Office | AB64: 29 | AD64: VA Schenck | AE64: 29 | AG64: Office | AH64: 29 | AJ64: Lunch w/Rand | AK64: 28
I65: Home Office | J65: 13 | X65: ADP | Y65: 10 | Z65: 4/25/2020 | AA65: Lunch Mtg | AB65: 40 | AD65: Office | AE65: 18 | AG65: Home Office | AH65: 18 | AJ65: Home Office | AK65: 18
I66: PO/Bank | J66: 45 | X66: Office | Y66: 10 | Z66: 4/27/2020 | AA66: C | AB66: 29 | AD66: Home Office | AE66: 13 | AG66: Dinner Mtg | AH66: 14 | AI66: 1/29/2020 | AJ66: Client | AK66: 13
X67: Home Office | Y67: 18 | AA67: Office Meeting | AB67: 18 | AC67: 3/25/2020 | AD67: Client | AE67: 22 | AG67: Home Office | AH67: 14 | AJ67: VA Schenck | AK67: 28
W68: 5/28/2020 | X68: Client | Y68: 13 | AA68: Home Office | AB68: 13 | AD68: Office | AE68: 10 | AF68: 2/26/2020 | AG68: Client | AH68: 13 | AJ68: Office | AK68: 18
X69: Office | Y69: 29 | Z69: 4/28/2020 | AA69: C | AB69: 13 | AD69: Home Office | AE69: 18 | AG69: VA Schenck | AH69: 20 | AJ69: Home Office | AK69: 18
X70: Home Office | Y70: 18 | AA70: Office Meeting | AB70: 29 | AC70: 3/26/2020 | AD70: Client | AE70: 13 | AG70: Office | AH70: 10 | AI70: 1/30/2020 | AJ70: Client | AK70: 13
W71: 5/29/2020 | X71: Client | Y71: 13 | AA71: Home Office | AB71: 18 | AD71: Office | AE71: 29 | AG71: Home Office | AH71: 18 | AJ71: Office | AK71: 29
X72: Office | Y72: 29 | Z72: 4/29/2020 | AA72: C | AB72: 13 | AD72: Home Office | AE72: 18 | AF72: 2/27/2020 | AG72: Client | AH72: 13 | AJ72: Home Office | AK72: 18
X73: Home Office | Y73: 18 | AA73: Home Office | AB73: 13 | AC73: 3/27/2020 | AD73: Client | AE73: 13 | AG73: Home Office | AH73: 13 | AI73: 1/31/2020 | AJ73: Client | AK73: 13
W74: 5/30/2020 | X74: Client | Y74: 10 | Z74: 4/30/2020 | AA74: C | AB74: 13 | AD74: Home Office | AE74: 29 | AG74: H. Higdset | AH74: 8 | AJ74: Office | AK74: 29
X75: Home Office | Y75: 10 | AA75: Office Meeting | AB75: 29 | AC75: 3/28/2020 | AD75: Client | AE75: 18 | AG75: Home Office | AH75: 8 | AJ75: Home Office | AK75: 18
AA76: Home Office | AB76: 18 | AD76: Office | AE76: 12 | AG76: Office | AH76: 18
AA77: PO Trips, Bank | AB77: 220 | AD77: Home Office | AE77: 12 | AG77: Home Office | AH77: 18
AC78: 3/30/2020 | AD78: Client | AE78: 13 | AF78: 2/28/2020 | AG78: Client | AH78: 13
AD79: Office | AE79: 29 | AG79: Office | AH79: 20
AD80: Home Office | AE80: 18 | AG80: Home Office | AH80: 18
AC81: 3/31/2020 | AD81: Client | AE81: 13 | AF81: 2/29/2020 | AG81: Client | AH81: 13
AD82: Office | AE82: 29 | AG82: Home Office | AH82: 13
AD83: Home Office | AE83: 18
AD84: PO/Bank/Supplies | AE84: 200
A91: To Home Office >>> | C91: =SUMIF(C3:C88,"Home Office",D3:D88) -> 296 | F91: =SUMIF(F3:F88,"Home Office",G3:G88) -> 316 | I91: =SUMIF(I3:I88,"Home Office",J3:J88) -> 479 | L91: =SUMIF(L3:L88,"Home Office",M3:M88) -> 326 | O91: =SUMIF(O3:O88,"Home Office",P3:P88) -> 342 | R91: =SUMIF(R3:R88,"Home Office",S3:S88) -> 297 | U91: =SUMIF(U3:U88,"Home Office",V3:V88) -> 301 | X91: =SUMIF(X3:X88,"Home Office",Y3:Y88) -> 0 | AA91: =SUMIF(AA3:AA88,"Home Office",AB3:AB88) -> 494 | AD91: =SUMIF(AD3:AD88,"Home Office",AE3:AE88) -> 466 | AG91: =SUMIF(AG3:AG88,"Home Office",AH3:AH88) -> 527 | AJ91: =SUMIF(AJ3:AJ88,"Home Office",AK3:AK88) -> 386 | AM91: =SUM(A91:AL91) -> 4230
